fUSD/lending_fUSD_20240327
["ID","MTS","AMOUNT","RATE_DAILY","PERIOD"]
[320713500,1711527047230,-511.4462288,0.00054794,120]
[320713501,1711527047239,-822.74,0.00054794,120]
[320713502,1711527047249,-516.42539193,0.00054794,120]
[320713503,1711527047259,-503.43440754,0.00054794,120]
[320713504,1711527047268,-642.63151246,0.00054794,120]
[320713505,1711527047277,-526.37,0.00054794,120]
[320713506,1711527047286,-500.0,0.00054794,120]
[320713507,1711527047296,-515.80690826,0.00054794,120]
[320713508,1711527047305,-500.0,0.00054794,120]
[320713509,1711527047315,-969.57,0.00054794,120]
[320713510,1711527047326,-509.59139387,0.00054794,120]
[320713511,1711527047335,-500.0,0.00054794,120]
[320713512,1711527047344,-508.39355543,0.00054794,120]
[320713513,1711527047353,-519.85859527,0.00054794,120]
[320713514,1711527047363,-502.27,0.00054794,120]
[320713515,1711527047372,-1159.36,0.00054794,120]
[320713516,1711527047382,-505.90280322,0.00054794,120]
[320713517,1711527047394,-500.0,0.00054794,120]
[320713518,1711527047404,-2205.03,0.00054794,120]
[320713519,1711527047414,-508.08125652,0.00054794,120]
[320713520,1711527047424,-505.76820804,0.00054794,120]
[320713521,1711527047435,-500.0,0.00054794,120]
[320713522,1711527047446,-500.0,0.00054794,120]
[320713523,1711527047456,-643.84503524,0.00054794,120]
[320713524,1711527047465,-500.0,0.00054794,120]
[320713525,1711527047474,-500.0,0.00054794,120]
[320713526,1711527047484,-151.0,0.00054794,120]
[320713527,1711527047493,-500.0,0.00054794,120]
[320713528,1711527047504,-506.80138008,0.00054794,120]
[320713529,1711527047513,-500.0,0.00054794,120]
[320713530,1711527047523,-500.0,0.00054794,120]
[320713531,1711527047533,-500.0,0.00054794,120]
[320713532,1711527047544,-506.92104134,0.00054794,120]
[320713533,1711527047553,-1428.09,0.00054794,120]
[320713534,1711527047562,-510.22084926,0.00054794,120]
[320713535,1711527047572,-500.0,0.00054794,120]
[320713536,1711527047583,-811.69,0.00054794,120]
[320713537,1711527047595,-527.52503941,0.00054794,120]
[320713538,1711527047603,-500.0,0.00054794,120]
[320713539,1711527047612,-500.0,0.00054794,120]
[320713540,1711527047622,-764.74,0.00054794,120]
[320713541,1711527047632,-500.0,0.00054794,120]
[320713542,1711527047649,-511.40064376,0.00054794,120]
[320713543,1711527047658,-500.0,0.00054794,120]
[320713544,1711527047668,-510.95081288,0.00054794,120]
[320713545,1711527047677,-500.0,0.00054794,120]
[320713546,1711527047687,-553.48,0.00054794,120]
[320713547,1711527047697,-500.0,0.00054794,120]
[320713548,1711527047706,-500.0,0.00054794,120]
[320713549,1711527047715,-500.0,0.00054794,120]
[320713550,1711527047726,-500.0,0.00054794,120]
[320713551,1711527047735,-500.0,0.00054794,120]
[320713552,1711527047746,-507.38573637,0.00054794,120]
[320713553,1711527047756,-680.96,0.00054794,120]
[320713554,1711527047766,-500.0,0.00054794,120]
[320713555,1711527047777,-500.0,0.00054794,120]
[320713556,1711527047786,-500.0,0.00054794,120]
[320713557,1711527047796,-151.0,0.00054794,120]
[320713558,1711527047805,-689.12,0.00054794,120]
[320713559,1711527047815,-624.74,0.00054794,120]
[320713560,1711527047825,-151.0,0.00054794,120]
[320713561,1711527047835,-506.94976692,0.00054794,120]
[320713562,1711527047846,-151.0,0.00054794,120]
[320713563,1711527047855,-500.0,0.00054794,120]
[320713564,1711527047865,-500.0,0.00054794,120]
[320713565,1711527047874,-567.28,0.00054794,120]
[320713566,1711527047883,-151.85725891,0.00054794,120]
[320713567,1711527047893,-500.0,0.00054794,120]
[320713568,1711527047902,-500.0,0.00054794,120]
[320713569,1711527047912,-505.78341198,0.00054794,120]
[320713570,1711527047922,-662.02,0.00054794,120]
[320713571,1711527047933,-506.82137954,0.00054794,120]
[320713572,1711527047943,-568.21234762,0.00054794,120]
[320713573,1711527047953,-151.0,0.00054794,120]
[320713574,1711527047962,-500.0,0.00054794,120]
[320713575,1711527047971,-658.34,0.00054794,120]
[320713576,1711527047981,-525.3,0.00054794,120]
[320713577,1711527047991,-882.01,0.00054794,120]
[320713578,1711527048002,-505.82500292,0.00054794,120]
[320713579,1711527048012,-500.0,0.00054794,120]
[320713580,1711527048021,-151.0,0.00054794,120]
[320713581,1711527048031,-508.8127189,0.00054794,120]
[320713582,1711527048040,-821.75,0.00054794,120]
[320713583,1711527048051,-247.919321,0.00054794,120]
[320713584,1711527048061,-500.0,0.00054794,120]
[320713585,1711527048070,-500.0,0.00054794,120]
[320713586,1711527048080,-500.0,0.00054794,120]
[320713587,1711527048089,-503.64150903,0.00054794,120]
[320713588,1711527048099,-500.0,0.00054794,120]
[320713589,1711527048108,-247.919321,0.00054794,120]
[320713590,1711527048117,-500.0,0.00054794,120]
[320713591,1711527048126,-500.0,0.00054794,120]
[320713592,1711527048137,-500.0,0.00054794,120]
[320713593,1711527048148,-500.0,0.00054794,120]
[320713594,1711527048159,-500.0,0.00054794,120]
[320713595,1711527048169,-505.65,0.00054794,120]
[320713596,1711527048178,-500.0,0.00054794,120]
[320713597,1711527048189,-517.08,0.00054794,120]
[320713598,1711527048199,-500.0,0.00054794,120]
[320713599,1711527048209,-500.0,0.00054794,120]
[320713600,1711527048218,-633.34920109,0.00054794,120]
[320713601,1711527048227,-500.0,0.00054794,120]
[320713602,1711527048238,-152.794272,0.00054794,7]
[320713603,1711527048248,-504.45919304,0.00054794,120]
[320713604,1711527048259,-500.0,0.00054794,120]
[320713605,1711527048267,-500.0,0.00054794,120]
[320713606,1711527048278,-1115.57,0.00054794,120]
[320713607,1711527048287,-552.28,0.00054794,120]
[320713608,1711527048297,-500.0,0.00054794,120]
[320713609,1711527048306,-151.0,0.00054794,120]
[320713610,1711527048317,-500.0,0.00054794,120]
[320713611,1711527048327,-509.20355739,0.00054794,120]
[320713612,1711527048337,-500.0,0.00054794,120]
[320713613,1711527048347,-659.81,0.00054794,30]
[320713614,1711527048355,-500.0,0.00054794,120]
[320713615,1711527048365,-515.43575333,0.00054794,120]
[320713616,1711527048375,-500.0,0.00054794,120]
[320713617,1711527048384,-500.0,0.00054794,120]
[320713618,1711527048394,-500.0,0.00054794,120]
[320713619,1711527048403,-539.0579672,0.00054794,120]
[320713620,1711527048412,-151.0,0.00054794,120]
[320713621,1711527048421,-509.583126,0.00054794,120]
[320713622,1711527048431,-827.8,0.00054794,120]
[320713623,1711527048442,-500.0,0.00054794,120]
[320713624,1711527048453,-500.0,0.00054794,120]
[320713625,1711527048467,-549.27,0.00054794,120]
[320713626,1711527048477,-383.70605675,0.00054794,120]
[320713627,1711527048488,-666.05,0.00054794,120]
[320713628,1711527048498,-514.82263754,0.00054794,120]
[320713629,1711527048508,-1293.37,0.00054794,120]
[320713630,1711527048516,-500.0,0.00054794,120]
[320713631,1711527048525,-511.56035914,0.00054794,120]
[320713632,1711527048534,-500.0,0.00054794,120]
[320713633,1711527048543,-500.0,0.00054794,120]
[320713634,1711527048552,-500.0,0.00054794,2]
[320713635,1711527048561,-629.75,0.00054794,120]
[320713636,1711527048571,-500.0,0.00054794,120]
[320713637,1711527048579,-500.0,0.00054794,120]
[320713638,1711527048592,-500.0,0.00054794,120]
[320713639,1711527048603,-659.56,0.00054794,120]
[320713640,1711527048612,-734.4,0.00054794,120]
[320713641,1711527048622,-500.0,0.00054794,120]
[320713642,1711527048633,-500.0,0.00054794,120]
[320713643,1711527048643,-500.0,0.00054794,120]
[320713644,1711527048652,-500.0,0.00054794,120]
[320713645,1711527048661,-500.0,0.00054794,120]
[320713646,1711527048670,-500.0,0.00054794,120]
[320713647,1711527048681,-500.0,0.00054794,120]
[320713648,1711527048691,-485.28796765,0.00054794,120]
[320713649,1711527048700,-563.8,0.00054794,120]
[320713650,1711527048711,-726.38,0.00054794,120]
[320713651,1711527048864,-500.0,0.00054794,120]
[320713652,1711527048874,-500.0,0.00054794,120]
[320713653,1711527048883,-505.09827236,0.00054794,120]
[320713654,1711527048892,-500.0,0.00054794,120]
[320713655,1711527048902,-598.76,0.00054794,120]
[320713656,1711527048911,-575.67,0.00054794,120]
[320713657,1711527048920,-508.0,0.00054794,120]
[320713658,1711527048929,-494.68889286,0.00054794,120]
[320713659,1711527048938,-615.19,0.00054794,120]
[320713660,1711527048947,-509.71334824,0.00054794,120]
[320713661,1711527048958,-502.98,0.00054794,120]
[320713662,1711527048967,-511.59476559,0.00054794,120]
[320713663,1711527048976,-500.0,0.00054794,120]
[320713664,1711527048985,-500.0,0.00054794,120]
[320713665,1711527048995,-510.1070089,0.00054794,2]
[320713666,1711527049004,-500.0,0.00054794,120]
[320713667,1711527049013,-500.0,0.00054794,120]
[320713668,1711527049022,-500.0,0.00054794,120]
[320713669,1711527049030,-507.76881731,0.00054794,120]
[320713670,1711527049040,-517.76259429,0.00054794,120]
[320713671,1711527049049,-702.57,0.00054794,120]
[320713672,1711527049058,-500.0,0.00054794,7]
[320713673,1711527049067,-597.49,0.00054794,120]
[320713674,1711527049076,-509.14870674,0.00054794,120]
[320713675,1711527049086,-508.98686224,0.00054794,120]
[320713676,1711527049097,-509.32422261,0.00054794,120]
[320713677,1711527049106,-507.38833457,0.00054794,120]
[320713678,1711527049118,-556.33,0.00054794,120]
[320713679,1711527049128,-507.95763918,0.00054794,120]
[320713680,1711527049138,-554.24,0.00054794,120]
[320713681,1711527049150,-1255.58,0.00054794,120]
[320713682,1711527049160,-629.96,0.00054794,120]
[320713683,1711527049169,-508.55652574,0.00054794,120]
[320713684,1711527049178,-157.44824006,0.00054794,120]
[320713685,1711527049188,-540.83040802,0.00054794,120]
[320713686,1711527049198,-1039.72,0.00054794,120]
[320713687,1711527049209,-505.52615962,0.00054794,120]
[320713688,1711527049218,-500.0,0.00054794,120]
[320713689,1711527049227,-600.78,0.00054794,120]
[320713690,1711527049237,-507.78036587,0.00054794,120]
[320713691,1711527049247,-500.0,0.00054794,120]
[320713692,1711527049257,-497.13639363,0.00054794,120]
[320713693,1711527049266,-500.0,0.00054794,120]
[320713694,1711527049275,-507.62474008,0.00054794,120]
[320713695,1711527049283,-500.0,0.00054794,120]
[320713696,1711527049293,-500.0,0.00054794,120]
[320713697,1711527049302,-500.0,0.00054794,120]
[320713698,1711527049312,-500.0,0.00054794,120]
[320713699,1711527049322,-505.7537208,0.00054794,120]
[320713700,1711527049332,-520.83,0.00054794,120]
[320713701,1711527049342,-516.67620422,0.00054794,120]
[320713702,1711527049351,-510.67892672,0.00054794,120]
[320713703,1711527049361,-435.25,0.00054794,120]
[320713704,1711527049370,-536.72350158,0.00054794,120]
[320713705,1711527049380,-702.81,0.00054794,120]
[320713706,1711527049389,-500.0,0.00054794,120]
[320713707,1711527049398,-913.69,0.00054794,120]
[320713708,1711527049407,-509.35705023,0.00054794,120]
[320713709,1711527049416,-559.38631646,0.00054794,120]
[320713710,1711527049425,-500.0,0.00054794,120]
[320713711,1711527049434,-500.0,0.00054794,120]
[320713712,1711527049443,-500.0,0.00054794,120]
[320713713,1711527049453,-500.0,0.00054794,120]
[320713714,1711527049463,-500.0,0.00054794,120]
[320713715,1711527049472,-500.0,0.00054794,120]
[320713716,1711527049481,-537.19,0.00054794,120]
[320713717,1711527049491,-515.05407592,0.00054794,120]
[320713718,1711527049501,-500.0,0.00054794,120]
[320713719,1711527049510,-509.68722774,0.00054794,120]
[320713720,1711527049520,-500.0,0.00054794,120]
[320713721,1711527049529,-554.69,0.00054794,120]
[320713722,1711527049538,-508.40953884,0.00054794,120]
[320713723,1711527049547,-710.56,0.00054794,120]
[320713724,1711527049556,-500.0,0.00054794,30]
[320713725,1711527049565,-500.0,0.00054794,120]
[320713726,1711527049574,-500.0,0.00054794,120]
[320713727,1711527049583,-500.0,0.00054794,120]
[320713728,1711527049595,-505.97415884,0.00054794,120]
[320713729,1711527049605,-755.2,0.00054794,120]
[320713730,1711527049614,-500.0,0.00054794,120]
[320713731,1711527049623,-510.93159517,0.00054794,120]
[320713732,1711527049633,-500.0,0.00054794,120]
[320713733,1711527049642,-183.13690706,0.00054794,120]
[320713734,1711527049651,-687.85,0.00054794,120]
[320713735,1711527049661,-500.0,0.00054794,120]
[320713736,1711527049670,-500.0,0.00054794,120]
[320713737,1711527049681,-500.0,0.00054794,120]
[320713738,1711527049691,-1380.36,0.00054794,120]
[320713739,1711527049701,-507.70913222,0.00054794,120]
[320713740,1711527049711,-500.0,0.00054794,120]
[320713741,1711527049720,-500.0,0.00054794,120]
[320713742,1711527049730,-614.07,0.00054794,120]
[320713743,1711527049739,-500.0,0.00054794,120]
[320713744,1711527049748,-762.49,0.00054794,120]
[320713745,1711527049757,-606.27,0.00054794,120]
[320713746,1711527049767,-862.69,0.00054794,120]
[320713747,1711527049776,-500.0,0.00054794,120]
[320713748,1711527049786,-511.55254335,0.00054794,120]
[320713749,1711527049795,-512.98691342,0.00054794,120]
[320713750,1711527049804,-500.0,0.00054794,120]
[320713751,1711527049813,-504.42,0.00054794,120]
[320713752,1711527049823,-507.13092146,0.00054794,120]
[320713753,1711527049833,-958.21,0.00054794,120]
[320713754,1711527049842,-500.0,0.00054794,120]
[320713755,1711527049852,-519.73,0.00054794,120]
[320713756,1711527049861,-510.73078719,0.00054794,120]
[320713757,1711527049871,-500.0,0.00054794,120]
[320713758,1711527049881,-506.0394959,0.00054794,120]
[320713759,1711527049890,-500.0,0.00054794,120]
[320713760,1711527049899,-500.0,0.00054794,120]
[320713761,1711527049909,-500.0,0.00054794,120]
[320713762,1711527049919,-812.39,0.00054794,120]
[320713763,1711527049928,-500.0,0.00054794,120]
[320713764,1711527049937,-508.51547277,0.00054794,120]
[320713765,1711527049947,-535.4,0.00054794,120]
[320713766,1711527049958,-500.0,0.00054794,120]
[320713767,1711527049968,-508.95632283,0.00054794,120]
[320713768,1711527049978,-1255.51,0.00054794,120]
[320713769,1711527049988,-500.0,0.00054794,120]
[320713770,1711527049997,-500.0,0.00054794,120]
[320713771,1711527050008,-515.54193049,0.00054794,120]
[320713772,1711527050017,-500.0,0.00054794,120]
[320713773,1711527050027,-500.0,0.00054794,120]
[320713774,1711527050036,-554.16325099,0.00054794,120]
[320713775,1711527050046,-500.0,0.00054794,120]
[320713776,1711527050055,-512.36263016,0.00054794,120]
[320713777,1711527050064,-531.82,0.00054794,120]
[320713778,1711527050074,-500.0,0.00054794,120]
[320713779,1711527050083,-500.0,0.00054794,120]
[320713780,1711527050092,-781.72,0.00054794,120]
[320713781,1711527050101,-500.0,0.00054794,120]
[320713782,1711527050110,-500.0,0.00054794,120]
[320713783,1711527050119,-839.32,0.00054794,120]
[320713784,1711527050129,-500.0,0.00054794,120]
[320713785,1711527050138,-500.0,0.00054794,120]
[320713786,1711527050147,-500.0,0.00054794,120]
[320713787,1711527050157,-500.0,0.00054794,120]
[320713788,1711527050166,-511.6659939,0.00054794,120]
[320713789,1711527050175,-1234.88,0.00054794,120]
[320713790,1711527050184,-500.0,0.00054794,120]
[320713791,1711527050193,-1556.02,0.00054794,120]
[320713792,1711527050203,-500.0,0.00054794,120]
[320713793,1711527050214,-2565.35,0.00054794,120]
[320713794,1711527050223,-500.0,0.00054794,120]
[320713795,1711527050232,-824.85,0.00054794,120]
[320713796,1711527050241,-500.0,0.00054794,120]
[320713797,1711527050250,-508.65545568,0.00054794,120]
[320713798,1711527050260,-511.31861647,0.00054794,120]
[320713799,1711527050269,-500.0,0.00054794,120]
[320713800,1711527050278,-500.0,0.00054794,120]
[320713801,1711527050287,-506.43682117,0.00054794,120]
[320713802,1711527050296,-500.0,0.00054794,120]
[320713803,1711527050306,-517.90520655,0.00054794,120]
[320713804,1711527050315,-500.0,0.00054794,120]
[320713805,1711527050324,-500.0,0.00054794,120]
[320713806,1711527050334,-500.0,0.00054794,120]
[320713807,1711527050343,-507.49677317,0.00054794,120]
[320713808,1711527050353,-500.0,0.00054794,120]
[320713809,1711527050362,-870.55,0.00054794,120]
[320713810,1711527050371,-512.68803268,0.00054794,120]
[320713811,1711527050380,-931.12,0.00054794,120]
[320713812,1711527050389,-719.68,0.00054794,120]
[320713813,1711527050398,-652.59,0.00054794,120]
[320713814,1711527050408,-1509.65,0.00054794,120]
[320713815,1711527050418,-500.0,0.00054794,120]
[320713816,1711527050427,-500.0,0.00054794,120]
[320713817,1711527050436,-14966.82,0.00054794,120]
[320713818,1711527050446,-1036.31,0.00054794,120]
[320713819,1711527050455,-11090.01,0.00054794,120]
[320713820,1711527050465,-500.0,0.00054794,120]
[320713821,1711527050474,-819.89,0.00054794,120]
[320713822,1711527050483,-92764.25,0.00054794,120]
[320713823,1711527050492,-500.0,0.00054794,120]
[320713824,1711527050502,-939.29,0.00054794,120]
[320713825,1711527050512,-500.0,0.00054794,120]
[320713826,1711527050521,-500.0,0.00054794,120]
[320713827,1711527050531,-500.0,0.00054794,120]
[320713828,1711527050540,-512.11697753,0.00054794,120]
[320713829,1711527050550,-538.37,0.00054794,120]
[320713830,1711527050559,-2114.03,0.00054794,120]
[320713831,1711527050568,-2587.17,0.00054794,120]
[320713832,1711527050578,-500.0,0.00054794,120]
[320713833,1711527050590,-8574.58,0.00054794,120]
[320713834,1711527050600,-850.94,0.00054794,120]
[320713835,1711527050609,-4701.79,0.00054794,120]
[320713836,1711527050618,-500.0,0.00054794,120]
[320713837,1711527050629,-1398.2,0.00054794,120]
[320713838,1711527050639,-500.0,0.00054794,120]
[320713839,1711527050648,-1923.51,0.00054794,120]
[320713840,1711527050657,-4604.46,0.00054794,120]
[320713841,1711527050667,-500.0,0.00054794,120]
[320713842,1711527050676,-22507.5,0.00054794,120]
[320713843,1711527050686,-500.0,0.00054794,120]
[320713844,1711527050695,-500.0,0.00054794,120]
[320713845,1711527050706,-4506.89,0.00054794,120]
[320713846,1711527050715,-2627.99,0.00054794,120]
[320713847,1711527050724,-506.03327322,0.00054794,120]
[320713848,1711527050733,-666.71,0.00054794,120]
[320713849,1711527050742,-1354.97,0.00054794,120]
[320713850,1711527050751,-510.85726119,0.00054794,120]
[320713851,1711527050761,-21235.38,0.00054794,120]
[320713852,1711527050770,-506.13226921,0.00054794,120]
[320713853,1711527050779,-2246.32,0.00054794,120]
[320713854,1711527050788,-500.0,0.00054794,120]
[320713855,1711527050798,-514.66369877,0.00054794,120]
[320713856,1711527050807,-500.0,0.00054794,120]
[320713857,1711527050816,-633.54,0.00054794,120]
[320713858,1711527050826,-502.34027653,0.00054794,120]
[320713859,1711527050835,-500.0,0.00054794,120]
[320713860,1711527050844,-1089.31,0.00054794,120]
[320713861,1711527050854,-251.16223093,0.00054794,120]
[320713862,1711527050863,-453.03622674,0.00054794,120]
[320713863,1711527050873,-500.0,0.00054794,120]
[320713864,1711527050882,-2025.64,0.00054794,120]
[320713865,1711527050891,-1854.94,0.00054794,120]
[320713866,1711527050900,-1308.49,0.00054794,120]
[320713867,1711527050910,-934.82,0.00054794,120]
[320713868,1711527050919,-500.0,0.00054794,120]
[320713869,1711527050929,-1582.16,0.00054794,120]
[320713870,1711527050938,-2041.24,0.00054794,120]
[320713871,1711527050947,-500.0,0.00054794,120]
[320713872,1711527050956,-500.0,0.00054794,120]
[320713873,1711527050968,-501.38494461,0.00054794,120]
[320713874,1711527050976,-511.69356573,0.00054794,120]
[320713875,1711527050986,-527.4614735,0.00054794,120]
[320713876,1711527050995,-501.91492765,0.00054794,120]
[320713877,1711527051003,-500.0,0.00054794,120]
[320713878,1711527051013,-867.23,0.00054794,120]
[320713879,1711527051022,-500.0,0.00054794,120]
[320713880,1711527051032,-510.74795432,0.00054794,120]
[320713881,1711527051041,-500.0,0.00054794,120]
[320713882,1711527051050,-13218.66,0.00054794,120]
[320713883,1711527051059,-510.66756388,0.00054794,120]
[320713884,1711527051068,-2325.34,0.00054794,120]
[320713885,1711527051077,-1017.47,0.00054794,120]
[320713886,1711527051086,-2035.93,0.00054794,120]
[320713887,1711527051096,-1645.17,0.00054794,120]
[320713888,1711527051106,-500.0,0.00054794,120]
[320713889,1711527051115,-500.0,0.00054794,120]
[320713890,1711527051124,-500.0,0.00054794,120]
[320713891,1711527051133,-2072.73,0.00054794,120]
[320713892,1711527051143,-500.0,0.00054794,120]
[320713893,1711527051152,-4353.25,0.00054794,120]
[320713894,1711527051161,-2029.82,0.00054794,120]
[320713895,1711527051170,-28452.3,0.00054794,120]
[320713896,1711527051179,-602.57,0.00054794,120]
[320713897,1711527051189,-749.58,0.00054794,120]
[320713898,1711527051198,-500.0,0.00054794,120]
[320713899,1711527051210,-500.0,0.00054794,120]
[320713900,1711527051219,-1660.43,0.00054794,120]
[320713901,1711527051229,-4702.05,0.00054794,120]
[320713902,1711527051238,-661.32,0.00054794,120]
[320713903,1711527051247,-500.0,0.00054794,120]
[320713904,1711527051257,-4940.88,0.00054794,120]
[320713905,1711527051267,-500.0,0.00054794,7]
[320713906,1711527051275,-1524.56,0.00054794,120]
[320713907,1711527051285,-1636.85,0.00054794,120]
[320713908,1711527051294,-1744.51,0.00054794,120]
[320713909,1711527051304,-1415.9,0.00054794,120]
[320713910,1711527051313,-500.0,0.00054794,120]
[320713911,1711527051322,-506.71899128,0.00054794,120]
[320713912,1711527051331,-591.59,0.00054794,120]
[320713913,1711527051341,-511.62538376,0.00054794,120]
[320713914,1711527051350,-500.0,0.00054794,120]
[320713915,1711527051361,-500.0,0.00054794,120]
[320713916,1711527051370,-1926.79,0.00054794,120]
[320713917,1711527051380,-547.76,0.00054794,120]
[320713918,1711527051389,-5431.53,0.00054794,120]
[320713919,1711527051401,-500.0,0.00054794,120]
[320713920,1711527051411,-2426.27,0.00054794,120]
[320713921,1711527051422,-500.0,0.00054794,120]
[320713922,1711527051565,-1241.32,0.00054794,120]
[320713923,1711527051574,-11040.07,0.00054794,120]
[320713924,1711527051583,-1196.73,0.00054794,120]
[320713925,1711527051593,-4196.94,0.00054794,120]
[320713926,1711527051603,-500.0,0.00054794,120]
[320713927,1711527051612,-500.0,0.00054794,120]
[320713928,1711527051621,-500.0,0.00054794,120]
[320713929,1711527051630,-5251.33,0.00054794,120]
[320713930,1711527051642,-576.22,0.00054794,120]
[320713931,1711527051652,-6225.17,0.00054794,120]
[320713932,1711527051661,-840.82,0.00054794,120]
[320713933,1711527051672,-4067.39,0.00054794,120]
[320713934,1711527051681,-4852.6,0.00054794,120]
[320713935,1711527051690,-500.0,0.00054794,120]
[320713936,1711527051699,-502.86443508,0.00054794,120]
[320713937,1711527051710,-500.0,0.00054794,120]
[320713938,1711527051721,-4386.68,0.00054794,120]
[320713939,1711527051731,-500.0,0.00054794,120]
[320713940,1711527051742,-507.38749525,0.00054794,120]
[320713941,1711527051751,-51562.77,0.00054794,120]
[320713942,1711527051762,-575.71771177,0.00054794,120]
[320713943,1711527051772,-55367.63,0.00054794,120]
[320713944,1711527051782,-3269.76119635,0.00054794,120]
[320713945,1711527051792,-761.17,0.00054794,120]
[320713946,1711527051802,-7330.98,0.00054794,120]
[320713947,1711527051813,-813.13,0.00054794,120]
[320713948,1711527051823,-4292.27,0.00054794,120]
[320713949,1711527051833,-3285.59,0.00054794,120]
[320713950,1711527051843,-683.41,0.00054794,120]
[320713951,1711527051853,-516.22292994,0.00054794,120]
[320713952,1711527051863,-9310.39,0.00054794,120]
[320713953,1711527051872,-500.0,0.00054794,120]
[320713954,1711527051881,-500.0,0.00054794,120]
[320713955,1711527051890,-500.0,0.00054794,120]
[320713956,1711527051899,-2276.34,0.00054794,120]
[320713957,1711527051908,-633.33,0.00054794,120]
[320713958,1711527051918,-713.61,0.00054794,120]
[320713959,1711527051927,-5128.97,0.00054794,120]
[320713960,1711527051936,-2451.52,0.00054794,120]
[320713961,1711527051945,-668.24,0.00054794,120]
[320713962,1711527051954,-1973.64,0.00054794,120]
[320713963,1711527051963,-500.0,0.00054794,120]
[320713964,1711527051972,-567.77,0.00054794,120]
[320713965,1711527051981,-4800.79,0.00054794,120]
[320713966,1711527051990,-5152.31,0.00054794,120]
[320713967,1711527051999,-500.0,0.00054794,120]
[320713968,1711527052008,-506.51195613,0.00054794,120]
[320713969,1711527052017,-9107.91,0.00054794,120]
[320713970,1711527052026,-542.02,0.00054794,120]
[320713971,1711527052035,-547.45,0.00054794,120]
[320713972,1711527052044,-5689.78,0.00054794,120]
[320713973,1711527052053,-500.0,0.00054794,120]
[320713974,1711527052062,-5779.29,0.00054794,120]
[320713975,1711527052071,-518.03,0.00054794,120]
[320713976,1711527052080,-500.0,0.00054794,120]
[320713977,1711527052089,-510.19266194,0.00054794,120]
[320713978,1711527052098,-19393.43,0.00054794,120]
[320713979,1711527052107,-2138.35,0.00054794,120]
[320713980,1711527052117,-500.0,0.00054794,120]
[320713981,1711527052126,-790.59,0.00054794,120]
[320713982,1711527052135,-7197.09,0.00054794,120]
[320713983,1711527052144,-919.79,0.00054794,120]
[320713984,1711527052152,-1017.79,0.00054794,120]
[320713985,1711527052162,-509.34614664,0.00054794,120]
[320713986,1711527052170,-2043.27,0.00054794,120]
[320713987,1711527052179,-939.57,0.00054794,120]
[320713988,1711527052188,-7554.43,0.00054794,120]
[320713989,1711527052197,-500.0,0.00054794,120]
[320713990,1711527052207,-505.86834321,0.00054794,120]
[320713991,1711527052218,-500.0,0.00054794,120]
[320713992,1711527052229,-699.82,0.00054794,120]
[320713993,1711527052239,-511.12286916,0.00054794,120]
[320713994,1711527052249,-513.24439815,0.00054794,120]
[320713995,1711527052259,-2564.86,0.00054794,120]
[320713996,1711527052268,-511.00839981,0.00054794,120]
[320713997,1711527052277,-500.0,0.00054794,120]
[320713998,1711527052287,-510.37938807,0.00054794,120]
[320713999,1711527052305,-18785.47,0.00054794,120]